fUST/lending_fUST_20260124
["ID","MTS","AMOUNT","RATE_DAILY","PERIOD"]
[403169378,1769238646396,-3000.0,0.0002105,2]
[403169379,1769238646405,-3000.0,0.0002106,2]
[403169380,1769238646416,-1007.08,0.0002106,10]
[403169381,1769238646424,-1139.21,0.00021069,2]
[403169382,1769238646434,-3000.0,0.0002107,2]
[403169383,1769238646443,-3000.0,0.0002108,2]
[403169384,1769238646452,-3000.0,0.0002109,2]
[403169385,1769238646461,-3000.0,0.000211,2]
[403169386,1769238646470,-3000.0,0.0002111,2]
[403169387,1769238646479,-3000.0,0.0002112,2]
[403169388,1769238646488,-3000.0,0.0002113,2]
[403169389,1769238646497,-1024.8389139,0.0002114,2]
[403169390,1769238646509,-1975.1610861,0.0002114,2]
[403169391,1769238646518,-620.56008859,0.0002115,2]
[403169392,1769238646530,-2297.62047886,0.0002115,2]
[403169393,1769238646543,-81.81943255,0.0002115,2]
[403169394,1769238646552,-1885.631878,0.0002116,2]
[403169395,1769238646564,-1259.30593299,0.0002116,2]
[403170175,1769239821226,-150.0,0.00012295,2]
[403170176,1769239821255,-275.17,0.00013412,2]
[403170177,1769239821283,-150.0,0.00013625,2]
[403170199,1769239832101,-412.76,0.0001453,2]
[403170200,1769239832110,-1000.0,0.00014536,2]
[403170201,1769239832119,-300.0,0.0001554,2]
[403170202,1769239832127,-9116.3322296,0.00015541,2]
[403170203,1769239832136,-177.0,0.00015625,2]
[403170204,1769239832145,-550.35,0.00015648,2]
[403170205,1769239832153,-134.92078639,0.00016333,2]
[403170206,1769239832195,-365.07921361,0.00016333,2]
[403170207,1769239832204,-500.0,0.00016333,2]
[403170208,1769239832213,-500.0,0.00016333,2]
[403170209,1769239832222,-607.69815009,0.00016333,2]
[403170210,1769239832231,-568.95432023,0.00016333,2]
[403170211,1769239832240,-500.0,0.00016333,2]
[403170213,1769239832251,-500.0,0.00016333,2]
[403170214,1769239832260,-500.0,0.00016333,2]
[403170215,1769239832269,-347.49643929,0.00016333,2]
[403170217,1769239832278,-500.0,0.00016333,2]
[403170220,1769239832288,-500.0,0.00016333,2]
[403170222,1769239832298,-500.0,0.00016333,2]
[403170223,1769239832307,-501.1103359,0.00016333,2]
[403170224,1769239832317,-500.0,0.00016333,2]
[403170226,1769239832327,-500.0,0.00016333,2]
[403170227,1769239832337,-500.0,0.00016333,2]
[403170229,1769239832346,-500.0,0.00016333,2]
[403170230,1769239832355,-500.0,0.00016333,2]
[403170232,1769239832365,-500.0,0.00016333,2]
[403170234,1769239832374,-500.0,0.00016333,2]
[403170236,1769239832383,-500.0,0.00016333,2]
[403170237,1769239832392,-500.0,0.00016333,2]
[403170238,1769239832401,-346.2370899,0.00016333,2]
[403170239,1769239832411,-422.0080107,0.00016333,2]
[403170240,1769239832420,-500.0,0.00016333,2]
[403170241,1769239832429,-500.0,0.00016333,2]
[403170242,1769239832439,-500.0,0.00016333,2]
[403170243,1769239832448,-500.0,0.00016333,2]
[403170244,1769239832457,-500.0,0.00016333,2]
[403170245,1769239832712,-500.0,0.00016333,2]
[403170246,1769239832722,-500.0,0.00016333,2]
[403170247,1769239832732,-500.0,0.00016333,2]
[403170248,1769239832742,-500.0,0.00016333,2]
[403170249,1769239832751,-500.0,0.00016333,2]
[403170250,1769239832761,-500.0,0.00016333,2]
[403170251,1769239832770,-500.0,0.00016333,2]
[403170252,1769239832779,-500.0,0.00016333,2]
[403170253,1769239832789,-500.0,0.00016333,2]
[403170254,1769239832799,-500.0,0.00016333,2]
[403170255,1769239832808,-500.0,0.00016333,2]
[403170256,1769239832818,-500.0,0.00016333,2]
[403170257,1769239832827,-451.02132319,0.00016333,2]
[403170258,1769239832836,-500.0,0.00016333,2]
[403170259,1769239832845,-500.0,0.00016333,2]
[403170260,1769239832854,-500.0,0.00016333,2]
[403170261,1769239832864,-500.0,0.00016333,2]
[403170262,1769239832873,-500.0,0.00016333,2]
[403170263,1769239832883,-500.0,0.00016333,2]
[403170264,1769239832892,-500.0,0.00016333,2]
[403170265,1769239832901,-500.0,0.00016333,2]
[403170266,1769239832911,-500.0,0.00016333,2]
[403170267,1769239832920,-8326.94505356,0.00016334,2]
[403170268,1769239832930,-300.0,0.00016335,2]
[403170269,1769239832943,-300.0,0.00016335,2]
[403170270,1769239832953,-300.0,0.00016335,2]
[403170271,1769239832963,-300.0,0.00016335,2]
[403170272,1769239832972,-300.0,0.00016335,2]
[403170273,1769239832983,-300.0,0.00016335,2]
[403170274,1769239832993,-300.0,0.00016335,2]
[403170275,1769239833002,-300.0,0.00016335,2]
[403170276,1769239833013,-300.0,0.00016335,2]
[403170277,1769239833022,-300.0,0.00016335,2]
[403170278,1769239833031,-300.0,0.00016335,2]
[403170279,1769239833041,-300.0,0.00016335,2]
[403170280,1769239833050,-300.0,0.00016335,2]
[403170281,1769239833059,-300.0,0.00016335,2]
[403170282,1769239833068,-300.0,0.00016335,2]
[403170283,1769239833078,-687.94,0.00016765,2]
[403170284,1769239833087,-185.245,0.00016978,2]
[403170285,1769239833096,-10000.0,0.0001698,2]
[403170286,1769239833107,-151.0,0.00017255,2]
[403170287,1769239833116,-600.0,0.00017317,2]
[403170288,1769239833126,-151.0,0.00017576,2]
[403170289,1769239833136,-151.0,0.00017581,2]
[403170290,1769239833145,-204.0,0.00017625,2]
[403170291,1769239833155,-147.90506353,0.00017883,2]
[403170307,1769239838076,-677.61493647,0.00017883,2]
[403170309,1769239838085,-3109.55164844,0.000185,2]
[403170311,1769239838097,-6890.44835156,0.000185,2]
[403170313,1769239838106,-1090.23131737,0.0001899,2]
[403170314,1769239838116,-3280.53901275,0.0001899,2]
[403170315,1769239838195,-1637.54214461,0.0001899,2]
[403170316,1769239838206,-1879.21932739,0.0001899,2]
[403170324,1769239840402,-2637.85573661,0.0001899,2]
[403170325,1769239840411,-963.11,0.00019001,2]
[403170326,1769239840420,-720.0,0.00019048,2]
[403170327,1769239840429,-5373.78270372,0.00019101,3]
[403170356,1769239846362,-10446.25317681,0.00019101,3]
[403170357,1769239846372,-2487.15318209,0.00019135,2]
[403170358,1769239846380,-252.48016624,0.00019499,2]
[403170359,1769239858868,150.0,0.00015456,2]
[403170360,1769239859260,202.08,0.00016861,2]
[403170361,1769239868723,-303.12,0.00018266,2]
[403170362,1769239868751,-36.641878,0.00019489,3]
[403170365,1769240039204,-283.91984403,0.00012495,2]
[403170407,1769240042023,-183.0639306,0.00012495,2]
[403170439,1769240114125,-234.27572637,0.00012535,2]
[403170440,1769240119468,-155.0,0.00012535,2]
[403170453,1769240204113,-260.64252342,0.00012527,2]
[403170454,1769240205758,-153.64747658,0.00012527,2]
[403170455,1769240234239,-162.78,0.00012402,2]
[403170494,1769240369135,-483.5030264,0.00012394,2]
[403170496,1769240414081,-511.78478466,0.0001227,2]
[403170497,1769240416218,-172.88820423,0.0001227,2]
[403170498,1769240422205,-213.12003751,0.0001227,2]
[403170499,1769240422230,-17.1975753,0.00012394,2]
[403170500,1769240444125,-223.12745207,0.0001226,2]
[403170501,1769240446246,-249.9,0.00012137,2]
[403170502,1769240448078,-153.30581704,0.00012137,2]
[403170503,1769240448103,-1.85597873,0.0001226,2]
[403170504,1769240449429,-244.17,0.0001226,2]
[403170506,1769240474160,-164.67865086,0.00012137,2]
[403170526,1769240660664,872.35924784,0.00012,2]
[403170753,1769241032184,-150.0,0.00012178,2]
[403170754,1769241032193,-106.61708649,0.00012192,2]
[403170755,1769241032216,-83.71255281,0.00012192,2]
[403170756,1769241032226,-733.72,0.00012728,2]
[403170757,1769241032236,-155.0,0.00012842,2]
[403170758,1769241032246,-250.86041545,0.00013885,2]
[403170759,1769241032258,-1216.57958455,0.00013885,2]
[403170760,1769241032267,-177.0,0.00014178,2]
[403170761,1769241032277,-326.470358,0.00014693,2]
[403170762,1769241032286,-2201.15,0.00015042,2]
[403170763,1769241032295,-256.38087002,0.00015157,2]
[403170764,1769241032304,-1300.07895024,0.00015851,2]
[403170765,1769241032314,-1200.0,0.00015851,2]
[403170766,1769241032323,-300.0,0.00015988,2]
[403170767,1769241032332,-300.0,0.00015988,2]
[403170768,1769241032341,-500.0,0.00015989,2]
[403170769,1769241032350,-517.45280962,0.00015989,2]
[403170770,1769241032359,-269.11200119,0.00015989,2]
[403170771,1769241032369,-538.47078777,0.00015989,2]
[403170772,1769241032378,-500.0,0.00015989,2]
[403170773,1769241032387,-500.0,0.00015989,2]
[403170774,1769241032396,-445.10213232,0.00015989,2]
[403170775,1769241032405,-5123.16379158,0.0001599,2]
[403170776,1769241032417,-94876.83620842,0.0001599,2]
[403170777,1769241032427,-790.84147508,0.00016054,2]
[403170778,1769241032436,-860.08,0.00016114,3]
[403170779,1769241032445,-430.04,0.00016114,3]
[403170780,1769241032454,-215.02,0.00016114,3]
[403170781,1769241032463,-645.11,0.00016114,3]
[403170782,1769241032472,-205.71226181,0.00016123,2]
[403170783,1769241032482,-236663.6972989,0.00016124,2]
[403170915,1769241038350,-763336.3027011,0.00016124,2]
[403170916,1769241038360,-220.14705739,0.00016147,2]
[403170917,1769241038370,-204.0,0.00016178,2]
[403170918,1769241038380,-2934.87,0.00016199,2]
[403170919,1769241038391,-377.24,0.00016224,3]
[403170920,1769241038403,-188.62,0.00016224,3]
[403170921,1769241038414,-565.91,0.00016224,3]
[403170922,1769241038423,-500.0,0.00016233,2]
[403170923,1769241038432,-500.0,0.00016233,2]
[403170924,1769241038441,-517.98565916,0.00016233,2]
[403170925,1769241038450,-194.5651676,0.00016247,2]
[403170926,1769241038459,-194.5651676,0.000163,2]
[403170927,1769241038468,-194.5651676,0.000163,2]
[403170928,1769241038477,-194.5651676,0.000163,2]
[403170929,1769241038486,-194.5651676,0.000163,2]
[403170930,1769241038495,-194.5651676,0.000163,2]
[403170931,1769241038504,-194.5651676,0.000163,2]
[403170932,1769241038513,-194.5651676,0.000163,2]
[403170933,1769241038522,-194.5651676,0.000163,2]
[403170934,1769241038531,-194.5651676,0.000163,2]
[403170935,1769241038540,-194.5651676,0.000163,2]
[403170936,1769241038549,-194.5651676,0.000163,2]
[403170937,1769241038558,-300.0,0.00016558,2]
[403170938,1769241038567,-300.0,0.00016558,2]
[403170939,1769241038581,-300.0,0.00016558,2]
[403170940,1769241038591,-300.0,0.00016558,2]
[403170941,1769241038600,-300.0,0.00016558,2]
[403170942,1769241038610,-300.0,0.00016558,2]
[403170943,1769241038620,-300.0,0.00016558,2]
[403170944,1769241038629,-300.0,0.00016558,2]
[403170945,1769241038638,-300.0,0.00016558,2]
[403170946,1769241038647,-300.0,0.00016558,2]
[403170947,1769241038657,-300.0,0.00016558,2]
[403170948,1769241038666,-300.0,0.00016558,2]
[403170949,1769241038675,-300.0,0.00016558,2]
[403170950,1769241038684,-300.0,0.00016558,2]
[403170951,1769241038702,-300.0,0.00016558,2]
[403170952,1769241038712,-600.0,0.00016558,2]
[403170953,1769241038721,-3668.59,0.00017356,2]
[403170954,1769241038730,-420.0,0.0001748,2]
[403170955,1769241038739,-1720.16,0.00017484,3]
[403170956,1769241038748,-860.08,0.00017484,3]
[403170957,1769241038757,-430.04,0.00017484,3]
[403170958,1769241038765,-754.48,0.00017594,3]
[403170959,1769241038774,-377.24,0.00017594,3]
[403170960,1769241038791,-35484.2400909,0.00017957,2]
[403170961,1769241038811,-1042.3221224,0.00017957,2]
[403170962,1769241038823,-194.5651676,0.00018,2]
[403170963,1769241038833,-194.5651676,0.00018,2]
[403170964,1769241038842,-194.5651676,0.00018,2]
[403170965,1769241038851,-3212.22833056,0.00018041,2]
[403170966,1769241038860,-231.0,0.00018178,2]
[403170967,1769241038870,-720.0,0.00018213,2]
[403170968,1769241038879,-194.5651676,0.00018378,2]
[403170969,1769241038888,-4402.31,0.00018513,2]
[403170970,1769241038896,-361862.83203721,0.00018522,2]
[403170987,1769241040860,-0.0063102,0.00018522,2]
[403171636,1769241508611,1450.0,0.00012,30]
[403171663,1769241620846,-814.87,0.00012396,2]
[403171664,1769241620874,-150.0,0.00012677,2]
[403171665,1769241620896,-814.87,0.00013523,2]
[403171666,1769241620910,-150.0,0.00013523,2]
[403171667,1769241620922,-664.87,0.00013523,2]
[403171668,1769241650157,-227.35165306,0.0001236,2]
[403171990,1769242080313,284.14,3.436e-05,2]
[403172014,1769242232460,-792.63,0.00012384,2]
[403172015,1769242232469,-150.0,0.00012606,2]
[403172016,1769242232479,-501.82473873,0.00013273,2]
[403172018,1769242232488,-1585.25,0.00013509,2]
[403172021,1769242232498,-193.76439458,0.00013699,2]
[403172024,1769242232507,-473.22448146,0.00013699,2]
[403172027,1769242232516,-177.0,0.00014606,2]
[403172029,1769242232526,-2377.88,0.00014635,2]
[403172031,1769242232535,-300.0,0.00014988,2]
[403172033,1769242232544,-500.0,0.00014989,2]
[403172035,1769242232554,-500.0,0.00014989,2]
[403172037,1769242232564,-500.0,0.00014989,2]
[403172039,1769242232573,-552.37726961,0.00014989,2]
[403172041,1769242232583,-500.0,0.00014989,2]
[403172043,1769242232592,-500.0,0.00014989,2]
[403172045,1769242232602,-500.0,0.00014989,2]
[403172047,1769242232611,-500.0,0.00014989,2]
[403172049,1769242232620,-500.0,0.00014989,2]
[403172051,1769242232630,-500.0,0.00014989,2]
[403172052,1769242232639,-473.17883087,0.00014989,2]
[403172053,1769242232648,-500.0,0.00014989,2]
[403172054,1769242232657,-500.0,0.00014989,2]
[403172056,1769242232668,-318.50411341,0.00014989,2]
[403172058,1769242232678,-500.0,0.00014989,2]
[403172059,1769242232687,-500.0,0.00014989,2]
[403172060,1769242232696,-211.10201432,0.00014989,2]
[403172061,1769242232705,-500.0,0.00014989,2]
[403172062,1769242232716,-11883.55288718,0.00014989,2]
[403172068,1769242238493,-2084.42943746,0.00014989,2]
[403172072,1769242238537,-865.64963724,0.00014989,2]
[403172074,1769242238548,-2088.03168191,0.00014989,2]
[403172076,1769242238560,-1453.87975042,0.00014989,2]
[403172077,1769242238584,-16293.948678,0.00014989,2]
[403172078,1769242238594,-208.26215049,0.000154,2]
[403172079,1769242238604,-169.28501333,0.000154,2]
[403172080,1769242238613,-424.97,0.000154,2]
[403172081,1769242238623,-706.43160633,0.00015468,2]
[403172082,1769242238633,-10000.0,0.00015623,2]
[403172083,1769242238903,-10000.0,0.00015623,2]
[403172084,1769242238913,-1317.24,0.00015623,2]
[403172085,1769242238922,-10000.0,0.00015687,2]
[403172086,1769242238932,-303.654,0.00015731,2]
[403172087,1769242238941,-3170.51,0.00015761,2]
[403172088,1769242238950,-659.22,0.0001588,3]
[403172089,1769242238960,-549.35,0.0001588,3]
[403172090,1769242238969,-274.67,0.0001588,3]
[403172091,1769242238978,-824.05,0.0001588,3]
[403172092,1769242238988,-300.0,0.00015882,2]
[403172093,1769242238997,-300.0,0.00015882,2]
[403172094,1769242239008,-300.0,0.00015882,2]
[403172095,1769242239017,-300.0,0.00015882,2]
[403172096,1769242239030,-300.0,0.00015882,2]
[403172097,1769242239039,-300.0,0.00015882,2]
[403172098,1769242239048,-300.0,0.00015882,2]
[403172099,1769242239058,-300.0,0.00015882,2]
[403172100,1769242239067,-300.0,0.00015882,2]
[403172101,1769242239077,-300.0,0.00015882,2]
[403172102,1769242239086,-300.0,0.00015882,2]
[403172103,1769242239095,-300.0,0.00015882,2]
[403172104,1769242239104,-300.0,0.00015882,2]
[403172105,1769242239113,-300.0,0.00015882,2]
[403172106,1769242239122,-300.0,0.00015882,2]
[403172107,1769242239131,-844.63,0.0001589,2]
[403172108,1769242239141,-844.63,0.0001589,2]
[403172109,1769242239151,-844.63,0.0001589,2]
[403172110,1769242239160,-844.63,0.0001589,2]
[403172111,1769242239169,-844.63,0.0001589,2]
[403172112,1769242239178,-844.63,0.0001589,2]
[403172113,1769242239187,-844.63,0.0001589,2]
[403172114,1769242239197,-844.63,0.0001589,2]
[403172115,1769242239207,-844.63,0.0001589,2]
[403172116,1769242239216,-844.63,0.0001589,2]
[403172117,1769242239225,-844.63,0.0001589,2]
[403172118,1769242239234,-844.63,0.0001589,2]
[403172119,1769242239244,-844.63,0.0001589,2]
[403172120,1769242239253,-844.63,0.0001589,2]
[403172121,1769242239262,-844.63,0.0001589,2]
[403172122,1769242239271,-844.63,0.0001589,2]
[403172123,1769242239280,-844.63,0.0001589,2]
[403172124,1769242239290,-844.63,0.0001589,2]
[403172125,1769242239299,-844.63,0.0001589,2]
[403172126,1769242239309,-844.63,0.0001589,2]
[403172127,1769242239319,-844.63,0.0001589,2]
[403172128,1769242239329,-844.63,0.0001589,2]
[403172129,1769242239339,-844.63,0.0001589,2]
[403172130,1769242239348,-844.63,0.0001589,2]
[403172131,1769242239357,-844.63,0.0001589,2]
[403172132,1769242239367,-844.63,0.0001589,2]
[403172133,1769242239376,-844.63,0.0001589,2]
[403172134,1769242239385,-844.63,0.0001589,2]
[403172135,1769242239394,-844.63,0.0001589,2]
[403172136,1769242239404,-844.63,0.0001589,2]
[403172137,1769242239413,-844.63,0.0001589,2]
[403172138,1769242239423,-844.63,0.0001589,2]
[403172139,1769242239432,-844.63,0.0001589,2]
[403172140,1769242239441,-844.63,0.0001589,2]
[403172141,1769242239450,-844.63,0.0001589,2]
[403172142,1769242239460,-844.63,0.0001589,2]
[403172143,1769242239469,-844.63,0.0001589,2]
[403172144,1769242239478,-844.63,0.0001589,2]
[403172145,1769242239488,-903.08,0.0001589,2]
[403172146,1769242239498,-151.0,0.000159,2]
[403172147,1769242239508,-151.0,0.000159,2]
[403172148,1769242239517,-151.0,0.0001593,2]
[403172149,1769242239527,-500.0,0.00015989,2]
[403172150,1769242239536,-500.87942331,0.00015989,2]
[403172151,1769242239547,-500.72387049,0.00015989,2]
[403172152,1769242239556,-500.0,0.00015989,2]
[403172153,1769242239566,-500.0,0.00016123,2]
[403172154,1769242239575,-517.98565916,0.00016123,2]
[403172155,1769242239584,-663.0,0.00016182,2]
[403172156,1769242239593,-600.0,0.00016197,2]
[403172157,1769242239602,-420.0,0.00016404,2]
[403172158,1769242239611,-177.18690615,0.00016438,2]
[403172159,1769242239620,-204.0,0.00016606,2]
[403172160,1769242239630,-3963.14,0.00016887,2]
[403172161,1769242239639,-1318.44,0.0001725,3]
[403172162,1769242239648,-1098.7,0.0001725,3]
[403172163,1769242239656,-549.34,0.0001725,3]
[403172164,1769242239666,-180.0,0.00017386,2]
[403172165,1769242239679,-177.51684372,0.00017386,2]
[403172166,1769242239688,-389.1303352,0.00017556,2]
[403172167,1769242239697,-194.5651676,0.00017756,2]
[403172168,1769242239706,-194.5651676,0.00017756,2]
[403172169,1769242239717,-720.0,0.00017816,2]
[403172170,1769242239727,-587.0,0.00017953,2]
[403172171,1769242239737,-193.04278379,0.00017991,2]
[403172172,1769242239750,-4755.76,0.00018012,2]
[403172173,1769242239759,-153.0,0.00018156,2]
[403172174,1769242239768,-427.8482017,0.00018156,2]
[403172175,1769242239777,-153.0,0.00018156,2]
[403172176,1769242239786,-153.0,0.00018156,2]
[403172177,1769242239795,-348.3877448,0.00018379,2]
[403172178,1769242239805,-27876.3137902,0.00018403,2]
[403172179,1769242239816,-1042.3221224,0.00018403,2]
[403172180,1769242239825,-7607.9263008,0.00018403,2]
[403172181,1769242239836,-151.0,0.00018403,2]
[403172182,1769242239846,-151.0,0.00018403,2]
[403172183,1769242239855,-231.0,0.00018606,2]
[403172184,1769242239864,-151.0,0.00018828,2]
[403172185,1769242239873,-10171.75315812,0.0001899,2]
[403172186,1769242239883,-294.43473411,0.00019078,2]
[403172187,1769242239894,-1063890.30702302,0.00019078,2]
[403172188,1769242239907,-3100.42953345,0.00019078,2]
[403172189,1769242239917,-4269.35212161,0.00019078,2]
[403172244,1769242240824,-57540.0719873,0.00019078,2]
[403172825,1769242246628,-25878.31559067,0.00019078,2]
[403174553,1769242960939,485.0,0.00012,2]
[403175064,1769243432571,-300.0,0.00012299,2]
[403175066,1769243432582,-270.41709469,0.00012299,2]
[403175068,1769243432596,-700.58290531,0.00012299,2]
[403175070,1769243432608,-155.36009628,0.00012299,2]
[403175073,1769243432619,-3447.48679165,0.000123,2]
[403175075,1769243432630,-424.97,0.000123,2]
[403175077,1769243432642,-778.14,0.00012423,2]
[403175079,1769243432654,-916.55879867,0.000125,2]
[403175081,1769243432665,-163.68653676,0.00012543,2]
[403175083,1769243432676,-535.38934593,0.00012543,2]
[403175085,1769243432687,-500.0,0.00012543,2]
[403175088,1769243432698,-500.0,0.00012543,2]
[403175090,1769243432708,-500.0,0.00012543,2]
[403175092,1769243432720,-92.09656009,0.00012543,2]
[403175095,1769243432734,-407.90343991,0.00012543,2]
[403175097,1769243432745,-500.0,0.00012543,2]
[403175099,1769243432756,-300.6842709,0.00012543,2]
[403175101,1769243432767,-500.0,0.00012543,2]
[403175103,1769243432778,-500.0,0.00012543,2]
[403175105,1769243432789,-500.0,0.00012543,2]
[403175108,1769243432801,-500.0,0.00012543,2]
[403175110,1769243432812,-500.0,0.00012543,2]
[403175112,1769243432823,-500.0,0.00012543,2]
[403175114,1769243432835,-500.0,0.00012543,2]
[403175117,1769243432845,-500.0,0.00012543,2]
[403175119,1769243432857,-500.0,0.00012543,2]
[403175121,1769243432867,-500.0,0.00012543,2]
[403175123,1769243432878,-500.0,0.00012543,2]
[403175125,1769243432889,-500.0,0.00012543,2]
[403175128,1769243432900,-500.0,0.00012543,2]
[403175130,1769243432910,-2975.68072398,0.00012543,2]
[403175685,1769243438653,-500.0,0.00012544,2]
[403175686,1769243438665,-500.0,0.00012544,2]
[403175687,1769243438676,-500.0,0.00012544,2]
[403175688,1769243438688,-500.0,0.00012544,2]
[403175689,1769243438699,-500.0,0.00012544,2]
[403175690,1769243438710,-500.0,0.00012544,2]
[403175691,1769243438721,-500.0,0.00012544,2]
[403175692,1769243438732,-300.0,0.00012545,2]
[403175693,1769243438743,-300.0,0.00012545,2]
[403175694,1769243438754,-300.0,0.00012545,2]
[403175695,1769243438770,-300.0,0.00012545,2]
[403175696,1769243438781,-300.0,0.00012545,2]
[403175697,1769243438793,-300.0,0.00012545,2]
[403175698,1769243438804,-300.0,0.00012545,2]
[403175699,1769243438816,-300.0,0.00012545,2]
[403175700,1769243438827,-300.0,0.00012545,2]
[403175701,1769243438838,-300.0,0.00012545,2]
[403175702,1769243438849,-300.0,0.00012545,2]
[403175703,1769243438860,-300.0,0.00012545,2]
[403175705,1769243438870,-300.0,0.00012545,2]
[403175708,1769243438882,-300.0,0.00012545,2]
[403175710,1769243438893,-300.0,0.00012545,2]
[403175712,1769243438904,-1556.28,0.00013449,2]
[403175714,1769243438915,-420.0,0.00013497,2]
[403175716,1769243438926,-163.235179,0.00013699,2]
[403175718,1769243438937,-500.0,0.00013699,2]
[403175720,1769243438948,-600.0,0.00014097,2]
[403175723,1769243438963,-160.0,0.00014149,3]
[403175725,1769243438975,-400.0,0.00014247,2]
[403175727,1769243438988,-183.32491361,0.00014299,2]
[403175729,1769243438999,-160.0,0.00014517,4]
[403175731,1769243439010,-2334.42,0.00014578,2]
[403175734,1769243439021,-159.70390687,0.00014811,2]
[403175736,1769243439032,-587.0,0.00014813,2]
[403175738,1769243439043,-160.0,0.00014886,5]
[403175740,1769243439052,-500.0,0.0001498,6]
[403175772,1769243439349,-500.87942331,0.00014986,2]
[403175776,1769243439374,-500.72387049,0.00014986,2]
[403175778,1769243439388,-500.0,0.00014988,2]
[403175780,1769243439398,-500.0,0.00014988,2]
[403175782,1769243439407,-500.0,0.00014988,2]
[403175784,1769243439416,-500.0,0.00015117,6]
[403175786,1769243439425,-160.0,0.00015254,6]
[403175788,1769243439435,-500.0,0.00015254,6]
[403175790,1769243439444,-500.0,0.00015349,2]
[403175792,1769243439453,-500.0,0.00015349,2]
[403175794,1769243439462,-500.0,0.00015349,2]
[403175796,1769243439471,-500.0,0.00015349,2]
[403175798,1769243439480,-500.0,0.00015349,2]
[403175800,1769243439490,-500.0,0.00015349,2]
[403175802,1769243439499,-500.0,0.00015349,2]
[403175804,1769243439508,-500.0,0.00015349,2]
[403175806,1769243439517,-500.0,0.00015349,2]
[403175808,1769243439528,-500.0,0.00015349,2]
[403175810,1769243439536,-253.17343196,0.00015349,2]
[403175812,1769243439546,-150.0,0.00015349,2]
[403175814,1769243439555,-150.0,0.00015349,2]
[403175816,1769243439564,-517.98565916,0.00015399,2]
[403175818,1769243439574,-150.0,0.00015486,2]
[403175820,1769243439584,-150.0,0.00015486,2]
[403175822,1769243439593,-720.0,0.00015507,2]
[403175824,1769243439602,-160.0,0.00015622,7]
[403175826,1769243439612,-150.0,0.00015623,2]
[403175828,1769243439622,-150.0,0.00015623,2]
[403175830,1769243439630,-10000.0,0.00015623,2]
[403175832,1769243439639,-10000.0,0.00015623,2]
[403175834,1769243439648,-1317.24,0.00015623,2]
[403175836,1769243439657,-10000.0,0.00015687,2]
[403175838,1769243439666,-3112.56,0.00015704,2]
[403175840,1769243439676,-150.0,0.0001576,2]
[403175842,1769243439686,-150.0,0.0001576,2]
[403175844,1769243439695,-150.0,0.00015897,2]
[403175846,1769243439704,-150.0,0.00015897,2]
[403175848,1769243439714,-160.0,0.00015991,8]
[403175850,1769243439723,-250.0,0.00016034,2]
[403175852,1769243439731,-250.0,0.00016034,2]
[403175854,1769243439740,-823.0,0.00016256,2]
[403175856,1769243439750,-211.28973094,0.00016299,2]
[403175858,1769243439759,-160.0,0.00016359,9]
[403175860,1769243439768,-177.18690615,0.00016438,2]
[403175861,1769243439776,-1000.0,0.00016501,2]
[403175863,1769243439785,-160.0,0.00016727,10]
[403175865,1769243439794,-3890.7,0.00016826,2]
[403175867,1769243439803,-381.79674522,0.00016963,2]